bitfinex/quotes_SOLUSD_20240727
["timestamp","ask_amount","ask_price","bid_price","bid_amount"]
[1722105534474,14.33,182.18,182.14,0.7703633]
[1722105535605,14.33,182.17,182.14,6.2605633]
[1722105538502,14.33,182.17,182.14,0.7703633]
[1722105538899,14.33,182.16,182.14,0.7703633]
[1722105539209,14.33,182.15,182.14,0.7703633]
[1722105540583,19.8199,182.15,182.14,0.7703633]
[1722105541191,14.33,182.15,182.14,0.7703633]
[1722105546604,19.8199,182.15,182.14,0.7703633]
[1722105548411,14.33,182.15,182.14,0.7703633]
[1722105550317,14.33,182.16,182.14,0.7703633]
[1722105550491,14.33,182.16,182.14,6.2604633]
[1722105550691,14.33,182.18,182.15,5.4899]
[1722105551291,14.33,182.18,182.16,5.4895]
[1722105551511,14.33,182.18,182.15,5.4898]
[1722105551908,5.4885,182.2,182.14,0.7703633]
[1722105551909,14.33,182.19,182.16,5.4895]
[1722105552505,21.4078,182.21,182.16,5.4895]
[1722105552695,14.33,182.19,182.16,5.4895]
[1722105552892,14.33,182.19,182.17,5.4893]
[1722105555313,14.33,182.19,182.17,4.9893]
[1722105556320,14.33,182.2,182.17,4.9893]
[1722105557904,35.7377,182.21,182.17,4.9893]
[1722105558799,19.8181,182.21,182.17,4.9893]
[1722105559205,14.33,182.2,182.17,4.9893]
[1722105559899,14.33,182.2,182.16,5.4895]
[1722105560995,14.33,182.19,182.16,5.4895]
[1722105561198,14.33,182.18,182.16,5.4895]
[1722105561923,14.33,182.18,182.17,5.4893]
[1722105562123,14.33,182.19,182.17,5.4893]
[1722105562421,14.33,182.2,182.17,5.4893]
[1722105565723,14.33,182.18,182.14,0.7703633]
[1722105565909,14.33,182.17,182.14,0.7703633]
[1722105566217,14.33,182.16,182.14,0.7703633]
[1722105566425,14.33,182.16,182.14,6.2603633]
[1722105566818,14.33,182.16,182.14,0.7703633]
[1722105567622,14.33,182.16,182.14,6.2605633]
[1722105569116,14.33,182.16,182.15,5.4899]
[1722105569322,14.33,182.17,182.15,5.4899]
[1722105570811,14.33,182.17,182.14,0.7703633]
[1722105571038,40.99438249,182.24,182.14,0.7703633]
[1722105571039,14.33,182.16,182.14,6.2605633]
[1722105573609,19.8199,182.16,182.14,0.7703633]
[1722105573810,14.33,182.15,182.14,0.7703633]
[1722105574825,14.33,182.16,182.14,0.7703633]
[1722105575616,14.33,182.15,182.14,0.7703633]
[1722105600342,14.33,182.16,182.14,0.7703633]
[1722105605654,21.6571,182.19,182.14,0.7703633]
[1722105605852,14.33,182.17,182.14,6.2604633]
[1722105606769,14.33,182.17,182.14,0.7703633]
[1722105606945,21.6571,182.19,182.14,0.7703633]
[1722105606946,19.8199,182.16,182.14,0.7703633]
[1722105607653,14.33,182.16,182.14,0.7703633]
[1722105608054,16.1648,182.24,182.14,1.86844058]
[1722105608257,2.97278671,182.23,182.14,16.19844058]
[1722105608464,5.4881,182.22,182.17,5.4891]
[1722105608650,5.4876,182.23,182.16,14.33]
[1722105608855,14.33,182.23,182.16,14.33]
[1722105609057,2.97194271,182.22,182.16,14.33]
[1722105609271,30.4948,182.24,182.2,5.4884]
[1722105609485,35.982,182.24,182.2,5.4884]
[1722105609662,35.982,182.24,182.18,5.4887]
[1722105609856,5.4866,182.27,182.23,5.4875]
[1722105610055,19.8167,182.26,182.19,14.33]
[1722105610249,19.8167,182.26,182.21,5.4879]
[1722105610471,19.8167,182.26,182.21,5.488]
[1722105610757,19.8167,182.26,182.22,5.4878]
[1722105611175,19.8167,182.26,182.21,5.4881]
[1722105612663,19.816,182.29,182.22,15.42752136]
[1722105612868,19.816,182.29,182.22,14.33]
[1722105613073,19.816,182.29,182.24,5.487]
[1722105613276,14.33,182.3,182.25,5.4867]
[1722105613459,14.33,182.3,182.23,14.33]
[1722105613460,35.1084,182.31,182.24,14.33]
[1722105614367,14.33,182.3,182.26,5.4866]
[1722105614964,20.7784,182.31,182.26,5.4866]
[1722105615178,14.33,182.27,182.17,23.0168]
[1722105615481,14.33,182.23,182.17,23.0168]
[1722105615681,14.33,182.23,182.19,5.4887]
[1722105615879,6.2683,182.29,182.18,14.33]
[1722105615880,14.33,182.25,182.18,14.33]
[1722105616272,19.8169,182.25,182.2,5.4884]
[1722105616474,14.33,182.23,182.14,2.33821775]
[1722105616674,19.8177,182.23,182.18,5.489]
[1722105616877,5.4877,182.23,182.18,5.489]
[1722105618372,5.4879,182.22,182.18,5.489]
[1722105618771,5.4876,182.23,182.19,5.4886]
[1722105618971,5.4879,182.22,182.18,5.489]
[1722105619271,5.4863,182.27,182.21,14.33]
[1722105619468,5.4866,182.26,182.21,19.8179]
[1722105619867,5.4866,182.26,182.22,5.4878]
[1722105620084,14.33,182.28,182.22,5.4878]
[1722105620290,19.8165,182.27,182.22,5.4878]
[1722105620486,5.4866,182.26,182.22,5.4878]
[1722105621368,19.8166,182.26,182.19,14.33]
[1722105621572,19.8166,182.26,182.21,5.488]
[1722105622204,14.33,182.26,182.22,5.4878]
[1722105622392,14.33,182.27,182.22,5.4878]
[1722105622898,14.33,182.24,182.17,14.33]
[1722105623069,14.33,182.24,182.18,20.0]
[1722105623600,14.33,182.21,182.18,5.4888]
[1722105623770,14.33,182.22,182.19,5.4887]
[1722105623978,19.8177,182.23,182.19,5.4887]
[1722105624589,14.33,182.24,182.21,5.4881]
[1722105624794,14.33,182.25,182.22,5.4878]
[1722105625485,14.33,182.26,182.22,5.4878]
[1722105625688,14.33,182.25,182.22,5.4878]
[1722105625879,14.33,182.25,182.21,5.4881]
[1722105626269,19.8173,182.24,182.19,5.4885]
[1722105626470,14.33,182.22,182.18,5.489]
[1722105626883,14.33,182.22,182.19,5.4887]
[1722105627474,14.33,182.22,182.18,5.489]
[1722105627677,14.33,182.2,182.17,5.4893]
[1722105628488,14.33,182.2,182.18,5.489]
[1722105630068,14.33,182.2,182.14,2.33821775]
[1722105630272,14.33,182.19,182.14,0.7703633]
[1722105631400,19.8188,182.19,182.15,5.4899]
[1722105631979,14.33,182.19,182.15,5.4899]
[1722105632669,14.33,182.18,182.16,5.4896]
[1722105632899,14.33,182.19,182.17,5.4892]
[1722105633071,14.33,182.2,182.14,0.7703633]
[1722105633272,14.33,182.2,182.14,1.86829205]
[1722105633493,14.33,182.22,182.15,14.33]
[1722105635193,14.33,182.22,182.19,5.4887]
[1722105635372,14.33,182.21,182.19,5.4887]
[1722105635572,14.33,182.21,182.18,5.4889]
[1722105637895,5.4879,182.22,182.18,5.4889]
[1722105638099,14.33,182.21,182.18,5.4889]
[1722105641184,20.7807,182.23,182.14,15.1003633]
[1722105641385,14.33,182.22,182.15,1.09774703]
[1722105641582,8.63109594,182.26,182.15,1.09774703]
[1722105641583,6.47311197,182.26,182.17,14.33]
[1722105641795,5.4869,182.25,182.21,5.4881]
[1722105642109,19.8169,182.25,182.21,5.4881]
[1722105645186,14.33,182.23,182.19,5.4887]
[1722105645382,14.33,182.22,182.18,5.489]
[1722105645580,14.33,182.21,182.17,5.4891]
[1722105645790,14.33,182.21,182.18,5.489]
[1722105645995,14.33,182.22,182.18,5.489]
[1722105647402,14.33,182.22,182.19,5.4887]
[1722105647903,14.33,182.23,182.2,5.4884]
[1722105648087,14.33,182.24,182.17,15.42762042]
[1722105648788,14.33,182.24,182.18,1.09760654]
[1722105649182,14.33,182.24,182.21,5.488]
[1722105649386,19.8172,182.25,182.21,5.488]
[1722105650509,14.33,182.25,182.21,5.488]
[1722105650898,5.4862,182.28,182.23,5.4874]
[1722105651096,6.47311197,182.3,182.23,5.4874]
[1722105651097,5.4854,182.3,182.26,5.4866]
[1722105651394,19.8152,182.31,182.26,5.4866]
[1722105651789,5.4852,182.31,182.27,5.4863]
[1722105651995,19.8152,182.31,182.26,5.4865]
[1722105652406,5.4854,182.3,182.26,5.4865]
[1722105652600,19.8154,182.3,182.26,5.4865]
[1722105652995,19.8154,182.3,182.25,5.4868]
[1722105653391,14.33,182.29,182.25,5.4868]
[1722105655307,14.33,182.26,182.23,5.4873]
[1722105655807,14.33,182.24,182.21,5.488]
[1722105656210,14.33,182.23,182.2,5.4882]
[1722105656411,14.33,182.21,182.13,5.69078511]
[1722105656593,5.4876,182.23,182.13,14.33]
[1722105656594,14.33,182.2,182.13,14.33]
[1722105656794,14.33,182.2,182.18,5.4889]
[1722105657220,14.33,182.2,182.19,5.4887]
[1722105658097,14.33,182.2,182.18,5.489]
[1722105658720,14.33,182.22,182.19,5.4887]
[1722105659211,14.33,182.23,182.2,5.4884]
[1722105660000,14.33,182.23,182.19,5.4887]
[1722105660819,14.33,182.23,182.2,5.4884]
[1722105661198,14.33,182.23,182.14,0.7703633]
[1722105661199,14.33,182.22,182.15,14.33]
[1722105661400,14.33,182.22,182.18,5.489]
[1722105661736,14.33,182.21,182.18,5.489]
[1722105663002,14.33,182.21,182.19,5.4886]
[1722105664030,14.33,182.22,182.19,5.4886]
[1722105664540,14.33,182.23,182.2,5.4884]
[1722105665809,14.33,182.24,182.17,14.33]
[1722105666218,14.33,182.24,182.21,5.4879]
[1722105667238,16.0409,182.26,182.23,5.4874]
[1722105667520,30.3709,182.26,182.23,5.4874]
[1722105667828,16.0409,182.26,182.23,5.4874]
[1722105668017,19.8161,182.28,182.23,5.4874]
[1722105668334,19.8164,182.27,182.23,5.4874]
[1722105668535,19.8164,182.27,182.21,5.4878]
[1722105668736,19.8167,182.26,182.21,5.4878]
[1722105669037,19.8173,182.24,182.17,14.33]
[1722105669212,14.33,182.23,182.16,14.33]
[1722105669411,14.33,182.23,182.17,20.0]
[1722105670006,14.33,182.23,182.2,5.4884]
[1722105670203,5.487,182.25,182.2,5.4884]
[1722105670204,14.33,182.24,182.2,5.4884]
[1722105670419,19.8173,182.24,182.2,5.4884]
[1722105670621,14.33,182.23,182.19,5.4887]
[1722105671022,5.4873,182.24,182.19,5.4887]
[1722105671221,5.4873,182.24,182.2,5.4884]
[1722105673739,5.4875,182.23,182.18,5.4888]
[1722105673913,5.4876,182.23,182.18,5.4888]
[1722105674320,27.0096,182.24,182.15,1.56776837]
[1722105674529,21.5224,182.24,182.2,5.4884]
[1722105675433,27.0097,182.24,182.2,5.4884]
[1722105675608,5.4877,182.23,182.18,5.4889]
[1722105675808,21.5224,182.24,182.18,5.4889]
[1722105676238,21.5224,182.24,182.15,1.56776837]
[1722105677228,21.5224,182.24,182.2,5.4884]
[1722105677229,27.0097,182.24,182.2,5.4884]
[1722105677535,27.0097,182.24,182.19,5.4886]
[1722105678120,5.4876,182.23,182.19,5.4886]
[1722105678723,5.4879,182.22,182.17,5.489]
[1722105678917,5.4879,182.22,182.18,5.489]
[1722105679328,27.0099,182.24,182.19,5.4887]
[1722105680218,5.4876,182.23,182.19,5.4887]
[1722105681216,27.0097,182.24,182.19,5.4886]
[1722105681521,5.4875,182.23,182.19,5.4886]
[1722105681722,20.5952,182.24,182.2,5.4883]
[1722105682436,20.5952,182.24,182.19,5.4887]
[1722105683041,15.108,182.24,182.2,5.4883]
[1722105683428,5.487,182.25,182.2,5.4883]
[1722105683736,5.4873,182.24,182.2,5.4883]
[1722105684125,5.4873,182.24,182.15,2.66540285]
[1722105684333,5.487,182.25,182.15,2.66540285]
[1722105684639,5.487,182.25,182.2,5.4884]
[1722105686740,5.4873,182.24,182.19,5.4886]
[1722105689153,5.4876,182.23,182.19,5.4886]
[1722105689324,5.4876,182.23,182.15,1.56776837]
[1722105689325,28.68,182.25,182.17,5.489]
[1722105689523,45.0,182.24,182.17,5.489]
[1722105690257,5.4881,182.21,182.17,5.489]
[1722105690443,5.4879,182.22,182.17,5.489]
[1722105690947,5.4876,182.23,182.15,1.56776837]
[1722105691143,5.4876,182.23,182.18,5.489]
[1722105691953,5.4876,182.23,182.19,5.4887]
[1722105692849,5.4879,182.22,182.18,5.4889]
[1722105693050,14.35,182.21,182.18,5.4889]
[1722105696135,19.8379,182.22,182.18,5.4889]
[1722105696350,19.8379,182.22,182.17,5.4892]
[1722105699839,14.35,182.2,182.15,7.05746837]
[1722105700042,14.35,182.19,182.15,5.4897]
[1722105702254,19.8382,182.21,182.15,1.09783901]
[1722105702636,19.8382,182.21,182.17,5.4892]
[1722105702836,14.35,182.21,182.14,15.1203633]
[1722105703348,14.35,182.21,182.17,5.4893]
[1722105705645,14.35,182.21,182.18,5.489]
[1722105706048,14.35,182.21,182.14,0.7703633]
[1722105706049,14.35,182.2,182.14,0.7703633]
[1722105706250,14.35,182.18,182.14,6.2604633]
[1722105706550,14.35,182.17,182.14,6.2604633]
[1722105707845,14.35,182.16,182.14,6.2604633]
[1722105710764,14.35,182.16,182.14,0.7703633]
[1722105710961,14.35,182.15,182.14,0.7703633]
[1722105712363,14.35,182.15,182.14,6.2605633]
[1722105712674,14.35,182.16,182.14,6.2605633]
[1722105713049,14.35,182.15,182.14,6.2605633]
[1722105714670,14.35,182.16,182.14,6.2605633]
[1722105715047,14.35,182.15,182.14,0.7703633]
[1722105716764,14.35,182.16,182.14,0.7703633]
[1722105717070,14.35,182.16,182.14,6.2605633]
[1722105717258,14.35,182.17,182.14,6.2605633]
[1722105718678,14.35,182.17,182.14,0.7703633]
[1722105719473,19.8393,182.17,182.14,0.7703633]
[1722105720761,5.4891,182.18,182.14,6.2605633]
[1722105720961,14.35,182.2,182.14,0.7703633]
[1722105721168,14.35,182.2,182.14,1.86825267]
[1722105721572,21.8931,182.27,182.16,14.35]
[1722105721884,21.8931,182.27,182.19,5.4887]
[1722105721885,14.35,182.24,182.19,5.4887]
[1722105722174,14.35,182.24,182.2,5.4883]
[1722105722373,14.35,182.23,182.2,5.4883]
[1722105722564,19.8375,182.23,182.18,5.489]
[1722105723647,21.8931,182.27,182.17,14.35]
[1722105723854,15.3342,182.27,182.25,5.4869]
[1722105724059,5.4855,182.3,182.26,5.4866]
[1722105724254,19.8355,182.3,182.25,5.4869]
[1722105724554,14.35,182.3,182.26,5.4866]
[1722105725152,20.8192,182.32,182.27,5.4862]
[1722105725356,20.8192,182.32,182.27,5.4861]
[1722105725357,15.3342,182.32,182.27,5.4861]
[1722105725552,14.35,182.31,182.27,5.4861]
[1722105725953,14.35,182.32,182.28,5.4859]
[1722105726568,14.35,182.33,182.29,5.4856]
[1722105726755,14.35,182.33,182.3,5.4854]
[1722105727377,14.35,182.33,182.29,5.4857]
[1722105727558,19.8339,182.35,182.3,5.4854]
[1722105727761,14.35,182.34,182.27,14.35]
[1722105727955,14.35,182.32,182.25,14.35]
[1722105728275,14.35,182.32,182.26,20.0]
[1722105728771,14.35,182.33,182.26,34.35]
[1722105729177,14.35,182.31,182.27,5.4861]
[1722105729396,14.35,182.31,182.28,5.486]
[1722105729977,14.35,182.31,182.29,5.4857]
[1722105730973,14.35,182.32,182.29,5.4857]
[1722105731160,14.35,182.32,182.25,14.35]
[1722105731161,14.35,182.32,182.3,5.4854]
[1722105731552,14.35,182.32,182.25,14.35]
[1722105731885,5.4849,182.32,182.27,5.4861]
[1722105732174,5.4849,182.32,182.22,29.9267]
[1722105732175,14.35,182.28,182.22,15.5767]
[1722105732378,14.35,182.27,182.25,5.4867]
[1722105733788,14.35,182.28,182.26,5.4866]
[1722105733991,5.4846,182.33,182.22,29.9267]
[1722105734303,14.35,182.31,182.24,14.35]
[1722105734470,5.4846,182.33,182.24,14.35]
[1722105734672,14.35,182.31,182.24,14.35]
[1722105734969,14.35,182.31,182.29,5.4857]
[1722105736286,14.35,182.31,182.24,14.35]
[1722105736287,14.35,182.31,182.3,5.4854]
[1722105736988,14.35,182.33,182.3,5.4854]
[1722105737365,5.484,182.35,182.3,5.4853]
[1722105737570,14.35,182.32,182.3,5.4853]
[1722105737889,14.35,182.32,182.29,5.4856]
[1722105741786,14.35,182.33,182.31,5.4851]
[1722105742095,14.35,182.34,182.31,5.4851]
[1722105742491,14.35,182.33,182.31,5.4851]
[1722105743071,14.35,182.32,182.25,14.35]
[1722105743272,14.35,182.31,182.29,5.4856]
[1722105744371,14.35,182.3,182.27,5.4862]
[1722105744691,14.35,182.28,182.26,5.4866]
[1722105744900,14.35,182.27,182.25,5.4868]
[1722105745272,14.35,182.28,182.26,5.4866]
[1722105745673,14.35,182.31,182.29,5.4854]
[1722105745875,14.35,182.32,182.3,5.4852]
[1722105746075,5.4839,182.36,182.31,5.485]
[1722105746274,14.35,182.33,182.31,5.485]
[1722105746775,14.35,182.32,182.3,5.4854]
[1722105746972,14.35,182.32,182.29,5.4857]
[1722105747183,14.35,182.3,182.27,5.4863]
[1722105747386,14.35,182.3,182.28,5.486]
[1722105748297,14.35,182.31,182.28,5.486]
[1722105749594,14.35,182.3,182.28,5.486]
[1722105750390,14.35,182.31,182.28,5.486]
[1722105752600,14.35,182.31,182.29,5.4856]
[1722105753302,13.7077,182.38,182.3,5.4854]
[1722105753506,14.35,182.33,182.3,5.4854]
[1722105753798,5.4837,182.36,182.31,5.4851]
[1722105754001,14.35,182.35,182.31,5.4851]
[1722105754199,14.35,182.34,182.31,5.4851]
[1722105754994,14.35,182.34,182.3,5.4854]
[1722105755198,14.35,182.32,182.29,5.4856]
[1722105756393,14.35,182.32,182.3,5.4853]
[1722105756595,14.35,182.33,182.3,5.4853]
[1722105756902,14.35,182.33,182.31,5.4851]
[1722105757102,14.35,182.34,182.32,5.4848]
[1722105757293,14.35,182.35,182.32,5.4848]
[1722105757696,14.35,182.34,182.32,5.4848]
[1722105759290,5.4837,182.36,182.32,5.4848]
[1722105759494,14.35,182.36,182.33,5.4845]
[1722105759689,5.4834,182.37,182.33,5.4845]
[1722105759910,14.35,182.36,182.33,5.4845]
[1722105760313,5.483,182.39,182.34,5.4841]
[1722105760493,14.35,182.36,182.34,5.4841]
[1722105760696,6.5589,182.4,182.35,5.4838]
[1722105760890,14.35,182.37,182.35,5.4838]
[1722105761502,14.35,182.38,182.35,5.4838]
[1722105762611,14.35,182.37,182.33,5.4842]
[1722105762996,14.35,182.36,182.33,5.4842]
[1722105763404,14.35,182.35,182.33,5.4842]
[1722105763910,14.35,182.36,182.33,5.4842]
[1722105764913,15.4399,182.49,182.34,31.00954802]
[1722105765091,14.35,182.43,182.4,5.4823]
[1722105765797,14.35,182.43,182.41,5.482]
[1722105765998,5.4807,182.46,182.36,14.35]
[1722105766197,14.35,182.43,182.41,5.482]
[1722105766412,14.35,182.42,182.4,5.4823]
[1722105766933,14.35,182.41,182.39,5.4826]
[1722105767694,14.35,182.41,182.4,5.4824]
[1722105768618,5.481,182.45,182.4,5.4824]
[1722105768806,5.481,182.45,182.35,14.35]
[1722105768807,14.35,182.42,182.41,5.4821]
[1722105769396,5.4807,182.46,182.41,5.4821]
[1722105769617,14.35,182.43,182.42,5.4818]
[1722105769798,5.4807,182.46,182.42,5.4818]
[1722105770002,14.35,182.43,182.42,5.4818]
[1722105771529,5.4802,182.48,182.38,14.35]
[1722105771717,15.4399,182.49,182.4,14.35]
[1722105771901,14.35,182.47,182.44,5.4809]
[1722105772224,14.35,182.47,182.34,31.00907186]
[1722105772225,14.35,182.48,182.45,5.4808]
[1722105772514,15.4399,182.49,182.44,5.4812]
[1722105772515,14.35,182.47,182.44,5.4812]
[1722105773324,14.35,182.45,182.34,16.65907186]
[1722105773619,15.4399,182.49,182.35,21.56604886]
[1722105773620,14.35,182.41,182.35,21.56604886]
[1722105773823,14.35,182.38,182.35,1.56604886]
[1722105774126,14.35,182.38,182.33,6.3865]
[1722105774305,14.35,182.4,182.33,20.7365]
[1722105774615,14.35,182.4,182.38,5.4827]
[1722105774822,14.35,182.41,182.39,5.4827]
[1722105775119,14.35,182.41,182.4,5.4824]
[1722105775335,14.35,182.42,182.4,5.4824]
[1722105775624,5.4807,182.46,182.41,5.4821]
[1722105775804,14.35,182.42,182.35,14.35]
[1722105776001,14.35,182.42,182.4,5.4824]
[1722105776324,14.35,182.41,182.39,5.4827]
[1722105776510,14.35,182.4,182.39,5.4827]
[1722105776920,5.4813,182.44,182.39,5.4827]
[1722105776921,14.35,182.41,182.39,5.4827]
[1722105777117,14.35,182.41,182.4,5.4824]
[1722105777521,14.35,182.41,182.33,22.30272064]
[1722105777838,5.4811,182.45,182.34,20.0]
[1722105778024,14.35,182.42,182.35,59.35]
[1722105778321,14.35,182.42,182.4,5.4823]
[1722105780932,29.1398,182.49,182.41,5.4821]
[1722105780933,14.35,182.43,182.41,5.4821]
[1722105783407,14.35,182.43,182.36,14.35]
[1722105783730,14.35,182.42,182.4,5.4823]
[1722105783932,14.35,182.43,182.4,5.4823]
[1722105784321,14.35,182.42,182.4,5.4823]
[1722105784628,14.35,182.41,182.38,5.4828]
[1722105784926,14.35,182.4,182.38,5.4828]
[1722105785928,14.35,182.41,182.39,5.4827]
[1722105786530,14.35,182.42,182.39,5.4827]
[1722105787314,14.35,182.43,182.41,5.4819]
[1722105788425,14.35,182.43,182.42,5.4818]
[1722105788630,14.35,182.43,182.41,5.4821]
[1722105789026,14.35,182.43,182.42,5.4818]
[1722105789334,14.35,182.45,182.42,5.4818]
[1722105789522,14.35,182.45,182.38,14.35]
[1722105789725,14.35,182.45,182.43,5.4815]
[1722105790329,14.35,182.45,182.38,14.35]
[1722105791108,14.35,182.45,182.43,5.4814]
[1722105791431,14.35,182.46,182.43,5.4814]
[1722105791632,14.35,182.47,182.43,5.4814]
[1722105791833,5.4796,182.5,182.42,6.1709]
[1722105792039,19.8291,182.51,182.44,14.35]
[1722105792251,14.35,182.5,182.46,5.4804]
[1722105792738,14.35,182.5,182.47,5.4803]
[1722105793110,14.35,182.49,182.46,5.4805]
[1722105794417,14.35,182.47,182.44,5.481]
[1722105794930,14.35,182.52,182.41,14.35]
[1722105794931,14.35,182.48,182.41,14.35]
[1722105795233,14.35,182.49,182.46,5.4804]
[1722105795616,14.35,182.49,182.47,5.4801]
[1722105796735,14.35,182.49,182.48,5.48]
[1722105796945,2.22126315,182.53,182.48,5.48]
[1722105797127,14.35,182.5,182.48,5.48]
[1722105797331,14.35,182.51,182.49,5.4797]
[1722105798220,14.35,182.51,182.48,5.4799]
[1722105798714,16.1658,182.56,182.45,14.35]
[1722105798922,5.478,182.55,182.5,5.4791]
[1722105799137,14.35,182.53,182.5,5.4791]
[1722105799444,19.8282,182.54,182.5,5.4791]
[1722105799638,16.1658,182.56,182.53,5.4783]
[1722105799824,16.1658,182.56,182.46,14.35]
[1722105799825,14.35,182.54,182.46,14.35]
[1722105800018,14.35,182.53,182.46,14.35]
[1722105800223,14.35,182.53,182.49,5.4796]
[1722105805131,16.49515218,182.6,182.49,14.35]
[1722105805456,14.35,182.57,182.5,14.35]
[1722105805747,14.35,182.57,182.54,5.4781]
[1722105806646,14.35,182.57,182.55,5.4778]
[1722105806850,14.35,182.58,182.55,5.4778]
[1722105807247,15.5426,182.6,182.49,15.9565]
[1722105807248,14.35,182.57,182.54,5.4782]
[1722105807451,14.35,182.57,182.5,14.35]
[1722105807651,14.35,182.55,182.49,15.9565]
[1722105807947,14.35,182.55,182.52,5.4788]
[1722105808146,14.35,182.55,182.53,5.4785]
[1722105808333,18.43472308,182.64,182.51,36.5236]
[1722105808648,14.35,182.58,182.51,36.5236]
[1722105809054,14.35,182.58,182.55,5.4779]
[1722105809239,14.35,182.59,182.56,5.4775]
[1722105809448,14.35,182.58,182.51,36.5236]
[1722105809640,14.35,182.58,182.51,22.1736]
[1722105811262,14.35,182.58,182.55,5.4777]
[1722105811940,15.5426,182.65,182.53,14.35]
[1722105812241,14.35,182.61,182.58,5.477]
[1722105812448,5.4752,182.64,182.59,5.4765]
[1722105812652,14.35,182.61,182.59,5.4765]
[1722105812967,14.35,182.61,182.58,5.4769]
[1722105813154,14.35,182.59,182.51,22.1736]
[1722105813346,14.35,182.59,182.52,34.35]
[1722105813543,14.35,182.59,182.56,5.4776]
[1722105814343,14.35,182.61,182.54,14.35]
[1722105814560,14.35,182.61,182.58,5.4768]
[1722105814742,17.70489594,182.65,182.52,34.35]
[1722105814743,14.35,182.6,182.52,34.35]
[1722105814944,14.35,182.59,182.52,20.0]
[1722105815141,14.35,182.59,182.57,5.4771]
[1722105815449,5.476,182.62,182.58,5.4769]
[1722105815450,14.35,182.61,182.58,5.4769]
[1722105815666,5.4755,182.64,182.59,5.4764]
[1722105815848,14.35,182.62,182.59,5.4764]
[1722105816456,5.4749,182.65,182.6,5.4763]
[1722105816843,14.35,182.64,182.6,5.4763]
[1722105817375,5.4749,182.65,182.58,1.09530161]
[1722105817558,5.4749,182.65,182.58,15.44530161]
[1722105817742,5.4749,182.65,182.59,1.09521268]
[1722105818353,5.4747,182.66,182.61,5.4761]
[1722105818554,17.50477147,182.7,182.61,5.4761]
[1722105818555,5.4749,182.65,182.61,5.4759]
[1722105818751,19.8249,182.65,182.61,5.4759]
[1722105819077,19.8249,182.65,182.6,5.4763]
[1722105819376,19.8252,182.64,182.57,14.35]
[1722105819668,14.35,182.62,182.59,5.4766]
[1722105820159,14.35,182.6,182.53,14.35]
[1722105820468,14.35,182.59,182.55,5.4779]
[1722105820645,5.4764,182.6,182.55,5.4779]
[1722105820962,5.4764,182.6,182.52,15.91459023]
[1722105820963,14.35,182.57,182.54,5.4782]
[1722105821946,14.35,182.55,182.53,5.4785]
[1722105822153,14.35,182.55,182.54,5.4782]
[1722105822579,14.35,182.56,182.54,5.4782]